bitfinex-derivatives/quotes_SOLF0:USTF0_20240905
["timestamp","ask_amount","ask_price","bid_price","bid_amount"]
[1725540675423,3.7561,133.12,133.11,0.05648757]
[1725540676726,0.05272335,133.14,133.11,0.05648757]
[1725540678432,0.05272335,133.14,133.12,3.756]
[1725540678928,0.05272335,133.14,133.13,3.7559]
[1725540679829,28.84,133.21,133.12,2.7235]
[1725540680029,28.84,133.21,133.13,28.84]
[1725540680030,3.7544,133.19,133.13,28.84]
[1725540680227,32.57318566,133.21,133.13,28.84]
[1725540681036,0.05049519,133.18,133.16,0.0541929]
[1725540681433,3.80519519,133.18,133.16,0.0541929]
[1725540682328,3.7547,133.17,133.16,0.0541929]
[1725540682925,28.84,133.17,133.07,2.7837]
[1725540683128,28.84,133.11,133.04,6.56923279]
[1725540683431,32.54472806,133.11,133.04,2.7625]
[1725540683621,3.7572,133.09,133.05,3.7581]
[1725540684130,0.05040797,133.08,133.06,0.05247157]
[1725540684527,0.05040797,133.08,133.06,3.81017157]
[1725540685330,0.05040797,133.08,133.07,3.7576]
[1725540685524,0.05040797,133.08,133.06,0.05247157]
[1725540687537,3.7576,133.07,133.06,0.05247157]
[1725540690730,0.05040797,133.08,133.06,0.05247157]
[1725540691832,3.80770797,133.08,133.06,0.05247157]
[1725540692435,3.7576,133.07,133.06,0.05247157]
[1725540692734,0.05040797,133.08,133.06,0.05247157]
[1725540692932,3.80780797,133.08,133.06,0.05247157]
[1725540693130,28.84,133.07,133.06,0.05247157]
[1725540693437,3.7584,133.04,132.99,3.7596]
[1725540693836,28.84,133.06,132.99,3.7596]
[1725540694332,3.7589,133.03,132.99,3.7596]
[1725540694536,0.05717397,133.02,133.0,0.05530386]
[1725540694740,3.7593,133.01,133.0,0.05530386]
[1725540695040,0.05717397,133.02,132.92,28.84]
[1725540695041,3.7640027,133.02,132.92,28.84]
[1725540695239,28.84,132.98,132.91,1.415]
[1725540695428,3.7607,132.96,132.91,1.415]
[1725540695937,3.761,132.95,132.89,5.06047714]
[1725540696240,0.04884899,132.93,132.91,0.04749595]
[1725540697934,0.04884899,132.93,132.91,3.80959595]
[1725540698241,0.04884899,132.93,132.91,0.04749595]
[1725540698640,28.88884899,132.93,132.83,1.3981]
[1725540698943,1.3361,132.94,132.83,30.2381]
[1725540699245,28.84,132.93,132.83,33.92686514]
[1725540699438,3.7631,132.88,132.83,33.92686514]
[1725540699644,0.04994248,132.87,132.84,3.82045988]
[1725540700138,3.81314248,132.87,132.84,0.05635988]
[1725540700341,0.04994248,132.87,132.84,0.05635988]
[1725540700839,0.04994248,132.87,132.84,3.82035988]
[1725540701043,0.04994248,132.87,132.84,0.05635988]
[1725540701442,3.7635,132.86,132.84,0.05635988]
[1725540701945,3.81324248,132.87,132.84,0.05635988]
[1725540702134,0.04994248,132.87,132.84,0.05635988]
[1725540702536,3.7638,132.85,132.84,0.05635988]
[1725540705143,3.7636,132.86,132.84,0.05635988]
[1725540705738,3.81324248,132.87,132.84,0.05635988]
[1725540705940,0.04994248,132.87,132.84,0.05635988]
[1725540707345,3.7636,132.86,132.84,0.05635988]
[1725540707544,0.04994248,132.87,132.84,0.05635988]
[1725540710643,3.81324248,132.87,132.84,0.05635988]
[1725540712657,3.7638,132.85,132.84,0.05635988]
[1725540713057,0.04994248,132.87,132.84,0.05635988]
[1725540713256,3.7635,132.86,132.84,0.05635988]
[1725540713561,28.84,132.86,132.84,0.05635988]
[1725540713751,3.7638,132.85,132.84,0.05635988]
[1725540714345,32.6038,132.85,132.84,0.05635988]
[1725540715749,3.7638,132.85,132.84,0.05635988]
[1725540718749,0.04994248,132.87,132.84,0.05635988]
[1725540718956,3.81334248,132.87,132.84,0.05635988]
[1725540719358,3.7638,132.85,132.84,0.05635988]
[1725540719756,0.04994248,132.87,132.84,0.05635988]
[1725540720358,3.7637,132.86,132.84,0.05635988]
[1725540720665,0.04994248,132.87,132.84,0.05635988]
[1725540721061,3.7635,132.86,132.84,0.05635988]
[1725540721363,0.04994248,132.87,132.84,0.05635988]
[1725540721560,3.81324248,132.87,132.84,3.82035988]
[1725540721751,3.81324248,132.87,132.84,0.05635988]
[1725540721955,0.04994248,132.87,132.84,0.05635988]
[1725540722152,0.04994248,132.87,132.84,3.82025988]
[1725540722355,0.04994248,132.87,132.84,0.05635988]
[1725540722761,0.04994248,132.87,132.86,3.7635]
[1725540725058,0.04994248,132.87,132.84,0.05635988]
[1725540725059,3.7638,132.85,132.84,0.05635988]
[1725540726966,0.04994248,132.87,132.77,2.6653]
[1725540726967,32.62755028,132.86,132.77,2.6653]
[1725540727259,28.84,132.83,132.77,2.6653]
[1725540727667,3.7648,132.82,132.78,3.7657]
[1725540728063,0.05710548,132.81,132.79,0.05269586]
[1725540728757,3.82200548,132.81,132.79,0.05269586]
[1725540729260,3.7652,132.8,132.79,0.05269586]
[1725540731969,3.82210548,132.81,132.79,0.05269586]
[1725540732474,3.7652,132.8,132.79,0.05269586]
[1725540733963,28.89710548,132.81,132.79,0.05269586]
[1725540733964,3.82200548,132.81,132.79,0.05269586]
[1725540734169,0.05710548,132.81,132.79,0.05269586]
[1725540735470,3.82220548,132.81,132.79,0.05269586]
[1725540736669,0.05710548,132.81,132.79,0.05269586]
[1725540737174,0.05710548,132.81,132.8,3.7652]
[1725540738881,0.05710548,132.81,132.79,3.81809586]
[1725540739676,0.05710548,132.81,132.79,0.05269586]
[1725540741476,3.82220548,132.81,132.79,0.05269586]
[1725540741776,0.05710548,132.81,132.79,0.05269586]
[1725540741974,0.05710548,132.81,132.8,3.7652]
[1725540742478,0.05710548,132.81,132.79,0.05269586]
[1725540742683,0.05710548,132.81,132.79,3.81799586]
[1725540743081,0.05710548,132.81,132.79,0.05269586]
[1725540743279,3.7652,132.8,132.79,0.05269586]
[1725540743974,3.82210548,132.81,132.79,0.05269586]
[1725540744381,3.7652,132.8,132.79,0.05269586]
[1725540745088,3.82220548,132.81,132.79,0.05269586]
[1725540747689,3.7652,132.8,132.79,0.05269586]
[1725540748890,3.82210548,132.81,132.79,0.05269586]
[1725540749092,0.05710548,132.81,132.79,0.05269586]
[1725540749386,0.05710548,132.81,132.79,3.81799586]
[1725540749586,0.05710548,132.81,132.79,0.05269586]
[1725540750089,3.82210548,132.81,132.79,0.05269586]
[1725540751195,32.6052,132.8,132.79,0.05269586]
[1725540751394,32.6052,132.8,132.7,1.3911]
[1725540751395,28.84,132.8,132.7,1.3911]
[1725540751596,28.84,132.77,132.7,1.3911]
[1725540751793,28.84,132.77,132.72,3.7674]
[1725540752297,0.05614146,132.76,132.73,0.04943853]
[1725540752896,3.82264146,132.76,132.73,3.81633853]
[1725540755301,0.05614146,132.76,132.73,0.04943853]
[1725540755993,0.05614146,132.76,132.75,3.7666]
[1725540757495,28.84,132.83,132.74,2.7299]
[1725540758196,3.7654,132.8,132.74,2.7299]
[1725540758597,0.05035972,132.78,132.76,0.04790404]
[1725540759899,3.81625972,132.78,132.76,0.04790404]
[1725540760097,0.05035972,132.78,132.76,0.04790404]
[1725540760299,28.89035972,132.78,132.76,0.04790404]
[1725540760695,3.766,132.77,132.76,0.04790404]
[1725540761994,3.81625972,132.78,132.76,0.04790404]
[1725540762199,0.05035972,132.78,132.76,0.04790404]
[1725540762597,0.05035972,132.78,132.76,3.81420404]
[1725540762898,0.05035972,132.78,132.76,0.04790404]
[1725540763298,0.05035972,132.78,132.77,3.766]
[1725540763903,0.05035972,132.78,132.76,3.81410404]
[1725540764802,0.05035972,132.78,132.76,0.04790404]
[1725540765199,3.81635972,132.78,132.76,0.04790404]
[1725540765402,0.05035972,132.78,132.76,0.04790404]
[1725540765798,3.766,132.77,132.76,0.04790404]
[1725540766698,3.81625972,132.78,132.76,0.04790404]
[1725540766897,0.05035972,132.78,132.76,0.04790404]
[1725540767406,0.05035972,132.78,132.76,3.81420404]
[1725540767607,0.05035972,132.78,132.76,0.04790404]
[1725540768509,0.05035972,132.78,132.76,3.81420404]
[1725540770007,0.05035972,132.78,132.77,3.766]
[1725540774211,0.05035972,132.78,132.76,3.81410404]
[1725540774412,0.05035972,132.78,132.76,0.04790404]
[1725540775013,0.05035972,132.78,132.76,3.81420404]
[1725540775316,0.05035972,132.78,132.76,0.04790404]
[1725540775517,3.81635972,132.78,132.76,0.04790404]
[1725540777720,3.766,132.77,132.76,0.04790404]
[1725540778112,0.05035972,132.78,132.76,0.04790404]
[1725540778312,3.766,132.77,132.76,0.04790404]
[1725540778514,0.05035972,132.78,132.76,0.04790404]
[1725540779313,0.05035972,132.78,132.77,3.766]
[1725540783318,0.05035972,132.78,132.76,0.04790404]
[1725540783522,0.05035972,132.78,132.76,3.81410404]
[1725540784022,0.05035972,132.78,132.76,0.04790404]
[1725540785331,0.05035972,132.78,132.77,3.766]
[1725540785731,0.05035972,132.78,132.77,7.46825269]
[1725540785926,2.7664,132.84,132.8,3.765]
[1725540785927,1.3745,132.84,132.8,3.765]
[1725540786327,3.7646,132.83,132.8,3.765]
[1725540786728,1.3745,132.84,132.8,3.765]
[1725540786933,0.05483786,132.83,132.81,0.04903956]
[1725540787234,0.05483786,132.83,132.82,3.7646]
[1725540787626,3.7631,132.88,132.84,3.7638]
[1725540788021,4.1369,132.92,132.82,30.2892]
[1725540788022,3.7628,132.89,132.82,30.2892]
[1725540788226,33.0369,132.92,132.82,30.2892]
[1725540788227,33.0369,132.92,132.85,3.7636]
[1725540788628,3.7626,132.89,132.87,0.0479501]
[1725540791332,0.0559465,132.9,132.87,0.0479501]
[1725540792037,0.0559465,132.9,132.88,3.7627]
[1725540792236,3.8184465,132.9,132.87,0.0479501]
[1725540792534,0.0559465,132.9,132.87,0.0479501]
[1725540792735,0.0559465,132.9,132.87,3.8110501]
[1725540794434,3.8183465,132.9,132.87,3.8110501]
[1725540795530,0.0559465,132.9,132.88,3.7629]
[1725540795738,3.80006379,132.96,132.88,28.9]
[1725540795932,7.5173,133.04,132.88,28.9]
[1725540795933,3.761,132.95,132.88,28.9]
[1725540796432,2.6346,132.98,132.9,28.9]
[1725540796633,3.7604,132.97,132.94,3.7611]
[1725540796831,3.80806627,132.97,132.94,3.81154747]
[1725540797136,0.04766627,132.97,132.95,3.7608]
[1725540797729,0.04766627,132.97,132.94,3.81154747]
[1725540799539,3.80806627,132.97,132.94,3.81154747]
[1725540800742,0.04766627,132.97,132.94,3.81154747]
[1725540800934,0.04766627,132.97,132.95,3.7609]
[1725540802437,0.04766627,132.97,132.94,3.81164747]
[1725540803035,0.04766627,132.97,132.95,3.7609]
[1725540803841,0.04766627,132.97,132.94,0.05044747]
[1725540804438,0.04766627,132.97,132.96,3.7607]
[1725540806044,0.04766627,132.97,132.94,0.05044747]
[1725540806647,3.7608,132.96,132.94,0.05044747]
[1725540806944,0.04766627,132.97,132.94,0.05044747]
[1725540807143,3.80816627,132.97,132.94,3.81154747]
[1725540807343,0.04766627,132.97,132.94,0.05044747]
[1725540808447,0.04766627,132.97,132.95,3.7609]
[1725540808837,3.80806627,132.97,132.94,3.81154747]
[1725540812853,3.7608,132.96,132.94,0.05044747]
[1725540813750,3.761,132.95,132.94,0.05044747]
[1725540814957,3.7608,132.96,132.94,0.05044747]
[1725540817357,3.80816627,132.97,132.94,3.81164747]
[1725540817551,3.80816627,132.97,132.94,0.05044747]
[1725540817552,0.04766627,132.97,132.94,0.05044747]
[1725540818156,3.7608,132.96,132.94,0.05044747]
[1725540818555,3.80816627,132.97,132.94,3.81164747]
[1725540822262,3.7608,132.96,132.94,0.05044747]
[1725540822565,0.04766627,132.97,132.94,0.05044747]
[1725540822763,3.761,132.95,132.94,0.05044747]
[1725540822960,0.04766627,132.97,132.94,0.05044747]
[1725540823465,3.7608,132.96,132.94,0.05044747]
[1725540823766,0.04766627,132.97,132.94,0.05044747]
[1725540824165,0.04766627,132.97,132.94,23.17044747]
[1725540824468,0.04766627,132.97,132.95,3.7608]
[1725540824966,0.04766627,132.97,132.95,23.12]
[1725540825165,0.04766627,132.97,132.96,3.7607]
[1725540827962,1.3735,133.03,132.99,3.7598]
[1725540828168,1.3218,133.04,132.98,23.12]
[1725540828471,1.3218,133.04,133.0,3.7594]
[1725540828670,1.4028,133.06,132.99,23.12]
[1725540829173,0.04864243,133.04,133.01,3.80795174]
[1725540829766,3.80724243,133.04,133.01,3.80795174]
[1725540830871,3.80724243,133.04,133.01,0.04885174]
[1725540831474,23.16864243,133.04,133.01,0.04885174]
[1725540831674,0.04864243,133.04,133.01,0.04885174]
[1725540831976,3.80714243,133.04,133.01,0.04885174]
[1725540832673,0.04864243,133.04,133.01,3.80795174]
[1725540833268,0.04864243,133.04,133.01,0.04885174]
[1725540835372,3.7587,133.03,133.01,0.04885174]
[1725540837188,23.12,133.13,133.02,23.12]
[1725540837379,23.12,133.13,133.05,23.12]
[1725540837380,0.27639463,133.12,133.05,23.12]
[1725540837583,3.7571,133.09,133.05,26.8781]
[1725540838175,0.05039622,133.08,133.06,0.0511456]
[1725540838381,0.05346283,133.08,133.07,23.12]
[1725540839184,0.05346283,133.08,133.07,26.8776]
[1725540839881,0.05346283,133.08,133.07,3.7576]
[1725540842689,0.05346283,133.08,133.06,3.8089456]
[1725540842988,0.05346283,133.08,133.06,0.0511456]
[1725540843188,3.81086283,133.08,133.06,0.0511456]
[1725540843981,0.05346283,133.08,133.06,0.0511456]
[1725540844185,0.05346283,133.08,133.07,3.7576]
[1725540848697,0.05346283,133.08,133.06,3.8088456]
[1725540850991,0.05346283,133.08,133.06,0.0511456]
[1725540851597,3.7576,133.07,133.06,0.0511456]
[1725540852095,7.60185419,133.07,133.06,0.0511456]
[1725540852498,3.7576,133.07,133.06,0.0511456]
[1725540852695,3.81086283,133.08,133.06,0.0511456]
[1725540853397,0.05346283,133.08,133.06,0.0511456]
[1725540854097,3.81096283,133.08,133.06,0.0511456]
[1725540855686,0.05346283,133.08,133.06,0.0511456]
[1725540856798,0.05346283,133.08,133.06,3.8089456]
[1725540858199,0.05346283,133.08,133.06,0.0511456]
[1725540860898,3.81076283,133.08,133.06,0.0511456]
[1725540862595,3.7576,133.07,133.06,0.0511456]
[1725540863001,3.81076283,133.08,133.06,0.0511456]
[1725540865097,3.7576,133.07,133.06,0.0511456]
[1725540867708,7.60129596,133.07,133.06,0.0511456]
[1725540868101,3.7576,133.07,133.06,0.0511456]
[1725540869198,0.05346283,133.08,133.03,23.08]
[1725540869199,3.7582,133.05,133.03,23.08]
[1725540870297,3.81563326,133.05,133.03,23.12784634]
[1725540870704,3.81563326,133.05,133.03,0.04784634]
[1725540871505,0.05743326,133.05,133.03,3.80644634]
[1725540871704,0.05743326,133.05,133.03,23.12784634]
[1725540872399,0.05743326,133.05,133.03,26.88644634]
[1725540874608,27.77071499,133.2,133.04,23.08]
[1725540874906,3.7555,133.15,133.1,23.08]
[1725540875104,3.69736842,133.16,133.1,26.78413533]
[1725540875300,3.69736842,133.16,133.12,23.08]
[1725540875497,4.044,133.17,133.12,23.08]
[1725540875799,0.05743765,133.15,133.14,3.7555]
[1725540876006,3.7541,133.2,133.16,23.08]
[1725540876206,3.7541,133.2,133.17,0.04973098]
[1725540876207,0.05227468,133.19,133.17,0.04973098]
[1725540877306,0.05227468,133.19,133.17,3.80443098]
[1725540879102,0.05227468,133.19,133.17,0.04973098]
[1725540879905,3.80667468,133.19,133.17,0.04973098]
[1725540884914,3.7545,133.18,133.17,0.04973098]
[1725540885507,0.05227468,133.19,133.17,0.04973098]
[1725540885508,3.80657468,133.19,133.17,0.04973098]
[1725540885709,0.05227468,133.19,133.17,0.04973098]
[1725540886112,3.7545,133.18,133.17,0.04973098]
[1725540890916,3.7553,133.15,133.11,1.4013]
[1725540891119,3.7553,133.15,133.1,23.08]
[1725540891516,3.7553,133.15,133.11,3.7562]
[1725540892024,0.04873459,133.14,133.12,0.04926805]
[1725540892915,0.04873459,133.14,133.12,3.80536805]
[1725540893223,0.04873459,133.14,133.12,0.04926805]
[1725540893821,3.7559,133.13,133.12,0.04926805]
[1725540894614,3.7566,133.11,133.07,23.08]
[1725540894820,3.7566,133.11,133.03,2.6982]
[1725540894821,3.70003005,133.13,133.05,26.75823865]
[1725540895121,23.08,133.15,133.08,3.7571]
[1725540895624,3.81151902,133.13,133.1,0.0565909]
[1725540895819,0.05541902,133.13,133.1,0.0565909]
[1725540896415,0.05541902,133.13,133.1,3.8131909]
[1725540897320,3.81131902,133.13,133.1,3.8131909]
[1725540898025,3.7562,133.12,133.1,0.0565909]
[1725540898521,3.7564,133.11,133.1,0.0565909]
[1725540899223,23.08,133.12,133.03,28.07248535]
[1725540899522,24.3586,133.12,133.03,28.07248535]
[1725540899717,3.7571,133.09,133.03,28.07248535]
[1725540900220,0.05181676,133.07,133.06,3.7578]
[1725540900524,0.05126132,133.08,133.06,23.08]
[1725540900716,0.05126132,133.08,133.06,23.1360017]
[1725540901319,0.05126132,133.08,133.07,3.7576]
[1725540904927,3.76709845,133.14,133.11,3.7563]
[1725540905127,3.7562,133.12,133.09,23.08]
[1725540905327,3.7562,133.12,133.07,23.08]
[1725540905532,3.7562,133.12,133.09,3.7568]
[1725540906123,0.04772217,133.12,133.09,23.13028619]
[1725540906730,73.28187019,133.25,133.09,23.13028619]
[1725540906731,3.7546,133.18,133.11,23.08]
[1725540906934,3.7546,133.18,133.06,23.08]
[1725540906935,3.7546,133.18,133.13,23.08]
[1725540907131,3.7546,133.18,133.14,3.7554]
[1725540907431,3.7546,133.18,133.13,23.08]
[1725540907732,0.05440007,133.17,133.14,0.05509561]
[1725540909232,0.05440007,133.17,133.15,3.7551]
[1725540910336,0.05440007,133.17,133.16,3.755]
[1725540911131,0.05440007,133.17,133.15,3.7552]
[1725540911635,0.05440007,133.17,133.14,0.05509561]
[1725540911829,0.05440007,133.17,133.14,3.81049561]
[1725540911830,3.80920007,133.17,133.14,3.81049561]
[1725540913435,3.80920007,133.17,133.14,0.05509561]
[1725540913436,0.05440007,133.17,133.14,0.05509561]
[1725540913736,23.13440007,133.17,133.14,0.05509561]
[1725540914134,3.7553,133.15,133.14,0.05509561]
[1725540916332,3.80940007,133.17,133.14,0.05509561]
[1725540916643,0.05440007,133.17,133.14,0.05509561]
[1725540917031,3.80920007,133.17,133.14,3.81049561]
[1725540918137,3.80920007,133.17,133.14,0.05509561]
[1725540920440,3.80920007,133.17,133.14,3.81049561]
[1725540920632,3.80920007,133.17,133.14,0.05509561]
[1725540920838,0.05440007,133.17,133.14,0.05509561]
[1725540921647,3.7553,133.15,133.14,0.05509561]
[1725540923239,23.08,133.17,133.08,23.08]
[1725540923442,2.6052,133.18,133.07,1.4136]
[1725540923443,1.3157,133.14,133.07,1.4136]
[1725540923835,1.3157,133.14,133.06,23.08]
[1725540924041,23.08,133.13,133.05,23.08]
[1725540924235,1.3157,133.14,133.08,0.05602392]
[1725540924236,0.04798593,133.1,133.08,0.05602392]
[1725540924448,3.757,133.09,133.08,0.05602392]
[1725540925248,3.80478593,133.1,133.08,0.05602392]
[1725540925446,0.04798593,133.1,133.08,0.05602392]
[1725540925646,0.04798593,133.1,133.08,3.81312392]
[1725540926147,0.04798593,133.1,133.08,0.05602392]
[1725540928748,3.80488593,133.1,133.08,0.05602392]
[1725540928939,0.04798593,133.1,133.08,0.05602392]
[1725540929348,3.757,133.09,133.08,0.05602392]
[1725540929738,0.04798593,133.1,133.08,0.05602392]
[1725540929947,3.80488593,133.1,133.08,0.05602392]
[1725540930142,0.04798593,133.1,133.08,0.05602392]
[1725540930347,3.88217869,133.1,133.08,0.05602392]
[1725540930842,3.757,133.09,133.08,0.05602392]
[1725540933849,0.04798593,133.1,133.08,0.05602392]
[1725540934551,0.04798593,133.1,133.08,3.81312392]
[1725540936758,3.80478593,133.1,133.08,0.05602392]
[1725540936955,0.04798593,133.1,133.08,0.05602392]
[1725540938564,3.757,133.09,133.08,0.05602392]
[1725540940659,3.758,133.06,133.02,99.69770281]
[1725540941164,3.758,133.06,133.02,103.45650281]
[1725540941364,3.758,133.06,133.02,99.69770281]
[1725540941765,0.04779544,133.05,133.03,0.05019228]
[1725540942165,0.04779544,133.05,133.04,3.7584]
[1725540942365,5.03459072,133.13,133.04,23.08]
[1725540942565,5.03459072,133.13,133.06,26.8377]
[1725540943264,5.03459072,133.13,133.08,3.7572]
[1725540943561,0.05004273,133.12,133.09,0.05085858]
[1725540943958,3.80634273,133.12,133.09,0.05085858]
[1725540947771,0.05004273,133.12,133.1,23.08]
[1725540947965,0.05004273,133.12,133.09,0.05085858]
[1725540948161,0.05004273,133.12,133.11,23.08]
[1725540948867,0.05004273,133.12,133.11,26.8364]
[1725540949365,7.52959665,133.18,133.14,3.7554]
[1725540949765,3.77489665,133.18,133.13,23.08]
[1725540950074,3.755,133.16,133.12,3.756]
[1725540950374,0.04743741,133.15,133.13,0.05451566]
[1725540950571,0.04743741,133.15,133.13,3.81031566]
[1725540950773,0.04743741,133.15,133.13,0.05451566]
[1725540954167,0.04743741,133.15,133.13,3.81021566]
[1725540954780,0.04743741,133.15,133.14,3.7556]
[1725540958979,0.04743741,133.15,133.13,3.81021566]
[1725540960271,7.502,133.31,133.14,23.08]
[1725540960473,1.3161,133.26,133.18,23.08]
[1725540960674,1.3161,133.26,133.19,3.754]
[1725540960878,1.3161,133.26,133.18,23.08]
[1725540961277,0.05195207,133.23,133.21,0.05222506]
[1725540962380,7.6314053,133.23,133.21,0.05222506]
[1725540962581,26.9584053,133.23,133.14,1.3451]
[1725540962780,1.3709,133.22,133.14,24.4251]
[1725540963177,3.7539,133.21,133.14,24.4251]
[1725540963788,0.05464178,133.19,133.17,3.7545]
[1725540963989,0.05464178,133.19,133.16,0.05200468]
[1725540964179,0.05464178,133.19,133.18,23.08]
[1725540964381,0.05464178,133.19,133.18,26.8345]
[1725540964987,3.753,133.24,133.18,23.08]
[1725540965182,3.753,133.24,133.2,23.08]
[1725540965587,7.43903563,133.25,133.2,23.08]
[1725540965779,3.7525,133.25,133.2,23.08]
[1725540965985,0.05527237,133.24,133.21,0.05680583]
[1725540967185,0.05527237,133.24,133.22,3.7532]
[1725540967380,27.77071499,133.45,133.22,23.08]
[1725540967687,4.0856,133.32,133.24,23.08]
[1725540967887,3.7513,133.3,133.26,3.7522]
[1725540968380,4.0856,133.32,133.27,0.052762]
[1725540968381,0.05507724,133.29,133.27,0.052762]
[1725540969099,0.05507724,133.29,133.28,3.7516]
[1725540969393,0.05507724,133.29,133.27,3.804562]
[1725540969596,0.05507724,133.29,133.27,0.052762]
[1725540970486,0.05507724,133.29,133.28,3.7516]
[1725540970697,0.05507724,133.29,133.27,0.052762]
[1725540971699,0.05507724,133.29,133.27,3.804662]
[1725540971883,0.05507724,133.29,133.27,0.052762]
[1725540972487,0.05507724,133.29,133.28,3.7516]
[1725540975887,0.05507724,133.29,133.27,3.804662]
[1725540976687,0.05507724,133.29,133.28,3.7516]
[1725540977391,0.05507724,133.29,133.28,32.5916]
[1725540977992,2.8089,133.35,133.28,28.84]
[1725540978292,223.0,133.47,133.34,28.84]
[1725540978494,223.0,133.47,133.36,28.84]
[1725540978495,1.3798,133.44,133.36,28.84]
[1725540978686,0.27574247,133.43,133.36,28.84]
[1725540978888,0.27573041,133.42,133.39,3.7485]
[1725540979207,3.7476,133.43,133.39,3.79634949]
[1725540979589,1.3798,133.44,133.41,3.748]
[1725540979785,1.3798,133.44,133.39,0.04784949]
[1725540980189,7.82787669,133.57,133.41,28.84]
[1725540980498,4.31724333,133.52,133.46,0.05161079]
[1725540980692,0.27564333,133.51,133.48,0.0477409]
[1725540981395,0.27558866,133.5,133.48,0.0477409]
[1725540981693,36.641819,133.52,133.48,0.0477409]
[1725540981889,0.27558302,133.51,133.48,0.0477409]
[1725540982291,3.7457,133.49,133.48,0.0477409]
[1725540983590,36.641819,133.52,133.41,28.84]
[1725540983890,28.84,133.48,133.34,1.2872]
[1725540984099,0.27564243,133.47,133.37,28.84]
[1725540984487,3.7482,133.41,133.37,28.84]
[1725540984691,0.04733834,133.4,133.38,0.05318295]
[1725540984897,0.05215194,133.4,133.38,0.05318295]
[1725540986792,0.05215194,133.4,133.39,28.84]
[1725540986998,0.05215194,133.4,133.39,32.5885]
[1725540988290,3.7469,133.45,133.4,3.7481]
[1725540989095,3.7473,133.44,133.39,32.5883]
[1725540989295,1.3927,133.46,133.4,0.05264606]
[1725540989698,3.7473,133.44,133.4,0.05264606]
[1725540989896,30.2327,133.46,133.4,0.05264606]
[1725540990192,3.7479,133.42,133.4,0.05264606]
[1725540990398,34.05956735,133.46,133.4,0.05264606]
[1725540990793,3.748,133.41,133.4,0.05264606]
[1725540991392,34.05956735,133.46,133.35,28.84]
[1725540991393,28.84,133.44,133.35,28.84]
[1725540992101,3.749,133.38,133.35,28.84]
[1725540992601,3.7493,133.37,133.35,0.05003248]
[1725540992895,0.05066886,133.38,133.35,0.05003248]
[1725540994403,3.79946886,133.38,133.35,0.05003248]
[1725540996308,3.7491,133.37,133.35,0.05003248]
[1725540997006,3.7494,133.36,133.35,0.05003248]
[1725540997400,0.05066886,133.38,133.35,0.05003248]
[1725540997904,3.7494,133.36,133.35,0.05003248]
[1725540998606,3.7492,133.37,133.35,0.05003248]
[1725540999103,0.05066886,133.38,133.28,3.7515]
[1725540999302,1.3701,133.36,133.24,2.7892]
[1725540999507,1.3701,133.36,133.29,28.84]
[1725540999800,3.7501,133.34,133.29,32.65367365]
[1725541000008,1.2933,133.4,133.33,28.84]
[1725541000210,0.05013765,133.38,133.35,28.8938721]
[1725541001408,0.05013765,133.38,133.36,3.7494]
[1725541001710,0.05013765,133.38,133.37,28.84]
[1725541003513,88.4902,133.52,133.37,28.84]
[1725541003715,88.4902,133.52,133.4,28.84]
[1725541003716,31.79973346,133.5,133.4,28.84]
[1725541003907,0.27563346,133.49,133.4,28.84]
[1725541004107,3.7479,133.42,133.4,28.84]
[1725541004308,3.7479,133.42,133.39,28.84]
[1725541004513,3.8013901,133.42,133.39,28.89027657]
[1725541005014,0.0534901,133.42,133.39,28.89027657]
[1725541005717,3.8012901,133.42,133.39,28.89027657]
[1725541005915,0.0534901,133.42,133.39,28.89027657]
[1725541006219,0.0534901,133.42,133.39,32.63867657]
[1725541006412,0.0534901,133.42,133.39,28.89027657]
[1725541006606,3.8012901,133.42,133.39,28.89027657]
[1725541007311,3.748,133.41,133.39,28.89027657]
[1725541009413,3.7483,133.4,133.39,0.05027657]
[1725541010422,7.75919643,133.41,133.34,32.5897]
[1725541010611,3.9732,133.41,133.34,28.84]
[1725541011019,3.7486,133.39,133.35,3.7495]
[1725541011210,223.0,133.5,133.36,28.84]
[1725541011410,7.4898,133.53,133.36,28.84]
[1725541011411,0.05299269,133.44,133.42,0.05138744]
[1725541011613,3.7478,133.42,133.38,32.5887]
[1725541011815,3.73799752,133.43,133.39,0.04873503]
[1725541012009,0.04769076,133.44,133.39,0.04873503]
[1725541012416,3.87270568,133.44,133.39,0.04873503]